bitfinex/quotes_BTCUSD_20240730
["timestamp","ask_amount","ask_price","bid_price","bid_amount"]
[1722332853142,0.66216127,66735.0,66734.0,0.009233]
[1722332853349,1.06689141,66735.0,66734.0,0.009233]
[1722332853553,1.08989141,66735.0,66734.0,0.009233]
[1722332853755,1.58178341,66735.0,66734.0,0.009233]
[1722332853974,1.59078341,66735.0,66734.0,0.010233]
[1722332854147,1.69078341,66735.0,66734.0,0.010233]
[1722332854538,1.42541272,66735.0,66734.0,0.009233]
[1722332854878,1.43041272,66735.0,66734.0,0.009233]
[1722332855083,1.45392924,66735.0,66734.0,0.009233]
[1722332855290,1.15423724,66735.0,66734.0,0.009233]
[1722332855473,1.13072072,66735.0,66734.0,0.009233]
[1722332855675,1.58110704,66735.0,66734.0,0.009233]
[1722332856838,1.56910704,66735.0,66734.0,0.009233]
[1722332856986,1.58110704,66735.0,66734.0,0.009233]
[1722332858835,1.56375602,66735.0,66734.0,0.009233]
[1722332861021,1.86344802,66735.0,66734.0,0.009233]
[1722332861246,1.56375602,66735.0,66734.0,0.009233]
[1722332861456,1.60462347,66735.0,66734.0,0.009233]
[1722332861890,1.56375602,66735.0,66734.0,0.009233]
[1722332862651,1.90431547,66735.0,66734.0,0.009233]
[1722332862856,1.60462347,66735.0,66734.0,0.009233]
[1722332863257,1.90431547,66735.0,66734.0,0.009233]
[1722332863466,0.7886777,66735.0,66734.0,0.009233]
[1722332863684,0.45356243,66735.0,66734.0,0.009233]
[1722332863981,0.729738,66735.0,66734.0,0.009233]
[1722332864358,0.2752,66735.0,66734.0,0.009233]
[1722332864582,0.1109,66735.0,66734.0,0.009233]
[1722332864809,0.02,66735.0,66734.0,0.009233]
[1722332865021,0.022,66735.0,66734.0,0.009233]
[1722332865188,0.022,66735.0,66734.0,0.01823644]
[1722332865189,0.012,66735.0,66734.0,0.01823644]
[1722332866016,0.012,66735.0,66734.0,0.16808444]
[1722332866190,0.012,66735.0,66734.0,0.21338444]
[1722332866425,0.022,66735.0,66734.0,0.21338444]
[1722332866629,0.01,66735.0,66734.0,0.21338444]
[1722332866986,0.01,66735.0,66734.0,0.06553644]
[1722332867189,0.03,66735.0,66734.0,0.02023644]
[1722332867436,0.01,66735.0,66734.0,0.01823644]
[1722332867589,0.01,66735.0,66734.0,0.16808444]
[1722332867787,0.011,66735.0,66734.0,0.17908444]
[1722332868091,0.011,66735.0,66734.0,0.02923644]
[1722332868295,0.031,66735.0,66734.0,0.02923644]
[1722332869037,0.011,66735.0,66734.0,0.47878144]
[1722332869300,0.011,66735.0,66734.0,0.02923644]
[1722332869742,0.001,66735.0,66734.0,0.47878144]
[1722332870562,0.001,66735.0,66734.0,0.77847844]
[1722332870699,0.001,66735.0,66734.0,0.47878144]
[1722332872988,0.001,66735.0,66734.0,0.77847844]
[1722332873310,0.001,66735.0,66734.0,0.47878144]
[1722332873876,0.1534,66735.0,66734.0,0.02923644]
[1722332874088,0.342586,66735.0,66734.0,0.02923644]
[1722332874287,0.325246,66735.0,66734.0,0.02923644]
[1722332874513,0.3487596,66735.0,66734.0,0.020233]
[1722332875193,0.6484516,66735.0,66734.0,0.020233]
[1722332875397,0.9481436,66735.0,66734.0,0.020233]
[1722332875742,0.6484516,66735.0,66734.0,0.020233]
[1722332876193,1.37261626,66735.0,66734.0,0.020233]
[1722332876369,1.2478356,66735.0,66734.0,0.020233]
[1722332876589,0.9481436,66735.0,66734.0,0.020233]
[1722332876788,0.92463,66735.0,66734.0,0.020233]
[1722332877648,0.92463,66735.0,66734.0,0.009233]
[1722332877649,0.621938,66735.0,66734.0,0.009233]
[1722332877784,0.01,66735.0,66734.0,0.012233]
[1722332878180,0.01,66735.0,66734.0,0.02005239]
[1722332878610,0.01,66738.0,66734.0,0.02005239]
[1722332878819,0.01,66739.0,66734.0,0.02005239]
[1722332879020,0.01,66739.0,66735.0,0.07534716]
[1722332879381,0.002,66745.0,66735.0,0.07534716]
[1722332879382,0.01,66740.0,66736.0,0.00781971]
[1722332879824,0.02351256,66739.0,66737.0,0.149841]
[1722332880032,0.01,66740.0,66736.0,0.00781971]
[1722332880255,0.01,66740.0,66739.0,0.149837]
[1722332880615,0.02,66740.0,66738.0,0.149839]
[1722332880815,0.02,66740.0,66739.0,0.00781971]
[1722332880816,0.01,66740.0,66739.0,0.00781971]
[1722332881218,0.01,66740.0,66735.0,0.07534716]
[1722332881219,0.01,66740.0,66738.0,0.149838]
[1722332881420,0.011,66740.0,66739.0,0.15765671]
[1722332881822,0.01,66740.0,66739.0,0.15765671]
[1722332882625,0.01,66740.0,66739.0,0.00781971]
[1722332882823,0.03351225,66740.0,66739.0,0.00781971]
[1722332883344,0.03,66740.0,66739.0,0.00781971]
[1722332883771,0.01,66739.0,66735.0,0.149845]
[1722332883972,0.02,66740.0,66734.0,0.009233]
[1722332883973,0.01,66738.0,66734.0,0.009233]
[1722332884179,0.01,66739.0,66734.0,0.15986604]
[1722332884381,0.01,66735.0,66734.0,0.009233]
[1722332884583,0.03,66735.0,66734.0,0.009233]
[1722332885955,0.03,66735.0,66734.0,0.023233]
[1722332885956,0.03451198,66735.0,66734.0,0.023233]
[1722332886682,0.05651198,66735.0,66734.0,0.023233]
[1722332886980,0.05451198,66735.0,66734.0,0.023233]
[1722332887181,0.03,66735.0,66734.0,0.009233]
[1722332887383,0.01,66735.0,66734.0,0.009233]
[1722332887684,0.031,66735.0,66734.0,0.022233]
[1722332887886,0.011,66735.0,66734.0,0.022233]
[1722332888060,0.031,66735.0,66734.0,0.022233]
[1722332888260,0.011,66735.0,66734.0,0.022233]
[1722332888461,0.031,66735.0,66734.0,0.022233]
[1722332888811,0.011,66735.0,66734.0,0.022233]
[1722332889727,0.001,66735.0,66734.0,0.022233]
[1722332889951,0.011,66735.0,66734.0,0.03003688]
[1722332890154,0.03451242,66735.0,66734.0,0.03003688]
[1722332890691,0.031,66735.0,66734.0,0.03003688]
[1722332891137,0.011,66735.0,66734.0,0.03003688]
[1722332892211,0.031,66735.0,66734.0,0.03003688]
[1722332893658,0.05451242,66735.0,66734.0,0.03003688]
[1722332893998,0.031,66735.0,66734.0,0.03003688]
[1722332895034,0.031,66735.0,66734.0,0.022233]
[1722332895322,0.031,66735.0,66734.0,0.03003733]
[1722332895529,0.011,66735.0,66734.0,0.03003733]
[1722332896135,0.1089,66735.0,66734.0,0.03003733]
[1722332896741,0.19841242,66735.0,66734.0,0.022233]
[1722332896981,0.19841242,66735.0,66734.0,0.03003735]
[1722332897197,0.19841242,66735.0,66734.0,0.022233]
[1722332897457,0.1749,66735.0,66734.0,0.022233]
[1722332897700,0.1749,66735.0,66734.0,0.0300387]
[1722332900092,0.1549,66735.0,66734.0,0.0300387]
[1722332901392,0.11241262,66735.0,66734.0,0.0300387]
[1722332901730,0.0889,66735.0,66734.0,0.0300387]
[1722332903133,0.011,66735.0,66734.0,0.0300387]
[1722332904248,0.031,66735.0,66734.0,0.0300387]
[1722332904433,0.05451262,66735.0,66734.0,0.0300387]
[1722332904633,0.03451262,66735.0,66734.0,0.0300387]
[1722332905048,0.031,66735.0,66734.0,0.0300387]
[1722332905451,0.011,66735.0,66734.0,0.0300387]
[1722332906281,0.01184,66735.0,66734.0,0.0300387]
[1722332907066,0.00184,66735.0,66734.0,0.4795837]
[1722332907269,0.00184,66735.0,66734.0,0.0300387]
[1722332907466,0.00184,66735.0,66734.0,0.1798867]
[1722332907711,0.00184,66735.0,66734.0,0.4795837]
[1722332908361,0.02535232,66735.0,66734.0,0.4795837]
[1722332909883,0.00184,66735.0,66734.0,0.4795837]
[1722332912468,0.00184,66735.0,66734.0,0.7792807]
[1722332912704,0.00184,66735.0,66734.0,0.4795837]
[1722332912917,0.02535212,66735.0,66734.0,0.4795837]
[1722332913203,0.00184,66735.0,66734.0,0.4795837]
[1722332913380,0.00184,66735.0,66734.0,0.60412903]
[1722332913552,0.00184,66735.0,66734.0,0.30443203]
[1722332913768,0.00184,66735.0,66734.0,0.1798867]
[1722332914440,0.00184,66735.0,66734.0,0.0300387]
[1722332914711,0.00184,66735.0,66734.0,0.1798867]
[1722332916094,0.02535218,66735.0,66734.0,0.1798867]
[1722332918183,0.00184,66735.0,66734.0,0.1798867]
[1722332921142,0.02535215,66735.0,66734.0,0.1070387]
[1722332921346,0.02535215,66735.0,66734.0,0.2568867]
[1722332921553,0.02535215,66735.0,66734.0,0.2500307]
[1722332921892,0.02535215,66735.0,66734.0,0.1001827]
[1722332922537,0.00184,66735.0,66734.0,0.1001827]
[1722332925588,0.02535228,66735.0,66734.0,0.1001827]
[1722332928045,0.02535228,66735.0,66734.0,0.2500307]
[1722332928977,0.02535228,66735.0,66734.0,0.1001827]
[1722332929982,0.02535228,66735.0,66734.0,0.2500307]
[1722332930783,0.02535228,66735.0,66734.0,0.1001827]
[1722332930999,0.11245228,66735.0,66734.0,0.1001827]
[1722332931293,0.17795228,66735.0,66734.0,0.1001827]
[1722332931648,0.16795228,66735.0,66734.0,0.1001827]
[1722332931990,0.16795228,66735.0,66734.0,0.0231827]
[1722332931991,0.14444,66735.0,66734.0,0.0231827]
[1722332933388,0.15444,66735.0,66734.0,0.0231827]
[1722332935564,0.17795169,66735.0,66734.0,0.0231827]
[1722332935773,0.16795169,66735.0,66734.0,0.0231827]
[1722332937602,0.17795169,66735.0,66734.0,0.0231827]
[1722332938408,0.16795169,66735.0,66734.0,0.0231827]
[1722332938668,0.17795169,66735.0,66734.0,0.0231827]
[1722332939165,0.15444,66735.0,66734.0,0.0231827]
[1722332942803,0.19913423,66735.0,66734.0,0.015377]
[1722332943003,0.19913423,66735.0,66734.0,0.02130639]
[1722332943581,0.15444,66735.0,66734.0,0.02130639]
[1722332943763,0.19913627,66735.0,66734.0,0.02130639]
[1722332944159,0.19913597,66735.0,66734.0,0.02130639]
[1722332944358,0.15444,66735.0,66734.0,0.02130639]
[1722332944817,0.15444,66735.0,66734.0,0.015377]
[1722332945783,0.15444,66735.0,66734.0,0.02130639]
[1722332947050,0.22148747,66735.0,66734.0,0.02130639]
[1722332947253,0.15444,66735.0,66734.0,0.02130639]
[1722332947439,0.14444,66735.0,66734.0,0.02130639]
[1722332947676,0.15444,66735.0,66734.0,0.02130639]
[1722332947884,0.304286,66735.0,66734.0,0.02130639]
[1722332948367,0.304286,66735.0,66734.0,0.015377]
[1722332948512,0.15444,66735.0,66734.0,0.015377]
[1722332948717,0.15444,66735.0,66734.0,0.02130869]
[1722332948927,0.22148004,66735.0,66734.0,0.02130869]
[1722332949127,0.21148004,66735.0,66734.0,0.02130869]
[1722332949523,0.37132604,66735.0,66734.0,0.02130869]
[1722332949829,0.15444,66735.0,66734.0,0.02130869]
[1722332950043,0.2214781,66735.0,66734.0,0.02130869]
[1722332950241,0.2114781,66735.0,66734.0,0.02130869]
[1722332950438,0.2114781,66735.0,66734.0,0.015377]
[1722332950670,0.2114781,66735.0,66734.0,0.02131097]
[1722332950872,0.2214781,66735.0,66734.0,0.02131097]
[1722332951104,0.3713241,66735.0,66734.0,0.02131097]
[1722332951278,1.26078527,66735.0,66734.0,0.02131097]
[1722332951466,1.3556258,66735.0,66734.0,0.02131097]
[1722332951630,1.6553178,66735.0,66734.0,0.015377]
[1722332951835,1.7590772,66735.0,66734.0,0.015377]
[1722332952035,2.00877152,66735.0,66734.0,0.002377]
[1722332952240,2.00877152,66735.0,66714.0,0.009273]
[1722332952241,0.781455,66715.0,66714.0,0.009273]
[1722332952446,1.33710638,66715.0,66714.0,0.009273]
[1722332952656,1.79187394,66715.0,66714.0,0.009273]
[1722332952857,1.89186861,66715.0,66714.0,0.009273]
[1722332953073,1.83038178,66715.0,66714.0,0.009273]
[1722332953283,1.83038178,66715.0,66711.0,0.009273]
[1722332953284,1.525082,66712.0,66711.0,0.009273]
[1722332953490,1.71297833,66712.0,66711.0,0.009273]
[1722332953684,1.83597833,66712.0,66711.0,0.009273]
[1722332953884,1.53618233,66712.0,66711.0,0.009273]
[1722332954084,1.64745703,66712.0,66711.0,0.009273]
[1722332954286,1.64795465,66712.0,66711.0,0.009273]
[1722332954491,1.53667568,66712.0,66711.0,0.009273]
[1722332955293,1.4599783,66712.0,66711.0,0.009273]
[1722332955445,1.4689783,66712.0,66711.0,0.010273]
[1722332955861,1.61967449,66712.0,66711.0,0.010273]
[1722332956276,1.39729241,66712.0,66711.0,0.010273]
[1722332956465,0.76570041,66712.0,66711.0,0.009273]
[1722332956666,0.276,66712.0,66711.0,0.009273]
[1722332957187,0.425898,66712.0,66711.0,0.009273]
[1722332957364,0.276,66712.0,66711.0,0.009273]
[1722332957567,0.425898,66712.0,66711.0,0.009273]
[1722332957746,0.725694,66712.0,66711.0,0.009273]
[1722332957953,1.02549,66712.0,66711.0,0.010273]
[1722332958204,1.135039,66712.0,66711.0,0.010273]
[1722332958975,1.17504541,66712.0,66711.0,0.010273]
[1722332959186,1.49784141,66712.0,66711.0,0.010273]
[1722332960624,1.39529241,66712.0,66711.0,0.010273]
[1722332960837,1.07249641,66712.0,66711.0,0.010273]
[1722332962296,0.283,66712.0,66711.0,0.010273]
[1722332962928,0.732694,66712.0,66711.0,0.010273]
[1722332963571,1.03249,66712.0,66711.0,0.010273]
[1722332963835,1.1657167,66712.0,66711.0,0.010273]
[1722332964664,1.50551911,66712.0,66711.0,0.010273]
[1722332964978,1.52851911,66712.0,66711.0,0.010273]
[1722332967261,1.54134721,66712.0,66711.0,0.010273]
[1722332967475,2.03384321,66712.0,66711.0,0.010273]
[1722332967809,2.10497807,66712.0,66711.0,0.010273]
[1722332968010,2.10497807,66712.0,66711.0,1e-08]
[1722332968204,2.03384321,66712.0,66711.0,1e-08]
[1722332968416,1.84114321,66712.0,66711.0,1e-08]
[1722332969785,1.219543,66702.0,66701.0,0.009284]
[1722332970076,1.38367306,66702.0,66701.0,0.009284]
[1722332971041,1.38367306,66702.0,66701.0,0.013284]
[1722332971249,1.68351406,66702.0,66701.0,0.013284]
[1722332971983,1.68351406,66702.0,66701.0,0.009284]
[1722332972183,1.81674076,66702.0,66701.0,0.009284]
[1722332972382,1.81974076,66702.0,66701.0,0.009284]
[1722332973892,1.56536776,66702.0,66701.0,0.009284]
[1722332974112,1.52947325,66702.0,66701.0,0.009284]
[1722332974287,1.54047325,66702.0,66701.0,0.010284]
[1722332974847,1.10740555,66702.0,66701.0,0.010284]
[1722332975054,0.32902,66702.0,66701.0,0.010284]
[1722332975391,0.041,66702.0,66701.0,0.010284]
[1722332975595,0.041,66702.0,66701.0,0.160206]
[1722332975920,0.021,66702.0,66701.0,0.46616769]
[1722332976135,0.021,66702.0,66701.0,0.76601269]
[1722332976548,0.021,66702.0,66701.0,0.46616769]
[1722332976718,0.021,66702.0,66701.0,0.76601269]
[1722332976921,0.011,66702.0,66701.0,0.76601269]
[1722332977127,0.47213,66714.0,66713.0,0.749477]
[1722332977444,0.48213,66714.0,66713.0,0.749477]
[1722332977638,0.48213,66714.0,66713.0,0.445686]
[1722332977922,0.50213,66714.0,66713.0,0.00610926]
[1722332978303,0.03,66712.0,66710.0,0.149901]
[1722332978666,0.01,66712.0,66710.0,0.149901]
[1722332978879,0.01,66712.0,66711.0,0.1499]
[1722332979338,0.03,66712.0,66711.0,0.1499]
[1722332979538,0.01,66710.0,66701.0,0.23401704]
[1722332979714,0.01,66710.0,66709.0,0.149904]
[1722332979916,0.01,66710.0,66708.0,0.149906]
[1722332980236,0.01,66710.0,66709.0,0.00607927]
[1722332980441,0.03,66710.0,66709.0,0.00607927]
[1722332980735,0.03,66710.0,66707.0,0.149908]
[1722332980938,0.01,66710.0,66709.0,0.00607927]
[1722332981140,0.01,66710.0,66709.0,0.449713]
[1722332981344,0.01,66710.0,66709.0,0.45579227]
[1722332982120,0.03352112,66710.0,66709.0,0.45579227]
[1722332982312,0.02179088,66710.0,66709.0,0.46979227]
[1722332982699,0.001,66710.0,66709.0,0.46979227]
[1722332983753,0.001,66710.0,66709.0,0.16998327]
[1722332985433,0.001,66710.0,66709.0,0.46979227]
[1722332985635,0.001,66710.0,66709.0,1.06941027]
[1722332985837,0.001,66710.0,66709.0,0.98173431]
[1722332986436,0.001,66710.0,66709.0,1.29384331]
[1722332987435,0.02451801,66710.0,66709.0,1.29384331]
[1722332987956,0.001,66710.0,66709.0,1.29384331]
[1722332988378,0.00083,66714.0,66713.0,1.049268]
[1722332988557,0.00083,66714.0,66713.0,1.19990104]
[1722332988897,0.00083,66714.0,66713.0,1.20597928]
[1722332989305,0.00083,66714.0,66713.0,1.26977928]
[1722332989658,0.00183,66714.0,66713.0,1.28377928]
[1722332989863,0.00183,66714.0,66713.0,0.98398828]
[1722332990753,0.00183,66714.0,66713.0,1.28377928]
[1722332990863,0.02534725,66714.0,66713.0,1.28377928]
[1722332991518,0.02534725,66714.0,66713.0,0.98398828]
[1722332994380,0.02534725,66714.0,66713.0,0.16997324]
[1722332994582,0.02534725,66714.0,66713.0,0.46976424]
[1722332994981,0.02183,66714.0,66713.0,0.02007824]
[1722332995292,0.00183,66714.0,66713.0,0.014]
[1722332995494,0.00183,66714.0,66713.0,0.02002843]
[1722332996217,0.51773522,66714.0,66713.0,0.02002843]
[1722332996464,0.47151,66714.0,66713.0,0.014]
[1722332996772,0.47351,66714.0,66713.0,0.014]
[1722332997475,0.7748512,66714.0,66713.0,0.014]
[1722332997698,0.6233642,66714.0,66713.0,0.014]
[1722332997925,0.71335785,66714.0,66713.0,0.014]
[1722332998155,0.73887988,66714.0,66713.0,0.014]
[1722332998381,0.62181,66714.0,66713.0,0.014]
[1722332998637,0.01,66705.0,66704.0,0.149914]
[1722332998878,0.01,66705.0,66701.0,0.309125]
[1722332998879,0.01,66705.0,66703.0,0.149918]
[1722332999820,0.01,66705.0,66704.0,0.149916]
[1722333000063,0.01,66705.0,66702.0,0.149919]
[1722333000300,0.02,66707.0,66703.0,0.149916]
[1722333000957,0.01,66703.0,66701.0,0.159206]
[1722333001201,0.01,66705.0,66702.0,0.14992]
[1722333001447,0.04352283,66707.0,66703.0,0.149918]
[1722333001681,0.01,66705.0,66702.0,0.149919]
[1722333001930,0.01,66705.0,66703.0,0.149918]
[1722333002136,0.04352283,66707.0,66703.0,0.161918]
[1722333002372,0.01,66705.0,66703.0,0.161917]
[1722333002615,0.01,66705.0,66703.0,0.149917]
[1722333003583,0.02,66705.0,66701.0,0.159204]
[1722333003830,0.02352283,66707.0,66701.0,0.009284]
[1722333004038,0.02352283,66707.0,66704.0,0.149914]
[1722333004548,0.02352283,66707.0,66705.0,0.149913]
[1722333004780,0.02352283,66707.0,66704.0,0.149915]
[1722333005045,0.02352283,66707.0,66703.0,0.012913]
[1722333005298,0.02352283,66707.0,66704.0,0.149915]
[1722333006735,0.04352283,66707.0,66704.0,0.149915]
[1722333006967,0.02,66705.0,66703.0,0.000913]
[1722333007184,0.02,66705.0,66703.0,0.160831]
[1722333007368,0.04352283,66707.0,66703.0,0.010913]
[1722333007577,0.04352283,66707.0,66703.0,0.160829]
[1722333007716,0.02352283,66707.0,66703.0,0.160829]
[1722333008055,0.04352283,66707.0,66703.0,0.160829]
[1722333008281,0.02352283,66707.0,66704.0,0.149914]
[1722333008482,0.02352283,66707.0,66705.0,0.149913]
[1722333008689,0.02352283,66707.0,66704.0,0.149915]
[1722333009046,0.04352283,66707.0,66704.0,0.159915]
[1722333009463,0.02352283,66707.0,66704.0,0.159915]
[1722333009684,0.04352283,66707.0,66704.0,0.01]
[1722333009886,0.02,66705.0,66704.0,0.01]
[1722333010597,0.02,66705.0,66704.0,0.159916]
[1722333010985,0.04352283,66707.0,66704.0,0.159916]
[1722333011185,0.02,66706.0,66704.0,0.159916]
[1722333011385,0.04352283,66707.0,66704.0,0.159916]
[1722333011643,0.02,66706.0,66704.0,0.159916]
[1722333011756,0.02,66705.0,66704.0,0.149916]
[1722333012161,0.02,66705.0,66704.0,0.161916]
[1722333012358,0.02,66706.0,66704.0,0.012]
[1722333012656,0.02,66705.0,66704.0,0.012]
[1722333012898,0.02,66705.0,66704.0,0.161916]
[1722333013105,0.01,66705.0,66704.0,0.161916]
[1722333013315,0.01,66705.0,66704.0,0.149916]
[1722333013747,0.02,66705.0,66704.0,0.160916]
[1722333014075,0.02,66705.0,66704.0,0.011]
[1722333014962,0.02,66705.0,66703.0,0.15083]
[1722333015362,0.04352283,66707.0,66704.0,0.161914]
[1722333015566,0.02352283,66707.0,66704.0,0.161914]
[1722333015803,0.02352283,66707.0,66704.0,0.149914]
[1722333016427,0.02352283,66707.0,66706.0,0.149911]
[1722333016671,0.02352283,66707.0,66706.0,0.749557]
[1722333017051,0.02352283,66707.0,66706.0,1.29648844]
[1722333017366,0.02352283,66707.0,66706.0,1.68241144]
[1722333017575,0.00083,66710.0,66709.0,1.059331]
[1722333017778,0.00083,66710.0,66709.0,1.89180004]
[1722333018110,0.00083,66710.0,66709.0,2.02182004]
[1722333018248,0.00083,66710.0,66709.0,2.17258533]
[1722333019311,0.00083,66710.0,66709.0,2.02189101]
[1722333019858,0.00083,66710.0,66709.0,2.03589101]
[1722333020917,0.02434722,66710.0,66709.0,2.03589101]
[1722333021119,0.00083,66710.0,66709.0,2.03589101]
[1722333021698,0.00083,66710.0,66709.0,2.03595404]
[1722333021920,0.00083,66710.0,66709.0,2.18664836]
[1722333022533,0.00083,66710.0,66709.0,2.48645736]
[1722333024054,0.02434644,66710.0,66709.0,2.48645736]
[1722333024834,0.02434644,66710.0,66709.0,2.19265427]
[1722333025038,0.02434644,66710.0,66709.0,2.07929327]
[1722333025243,0.02434644,66710.0,66709.0,1.50944312]
[1722333025449,0.02434644,66710.0,66709.0,0.62035195]
[1722333025621,0.00083,66710.0,66709.0,0.92016095]
[1722333025824,0.00083,66710.0,66709.0,0.62035195]
[1722333026047,0.00083,66710.0,66709.0,0.02000591]
[1722333026245,0.00083,66710.0,66709.0,0.46971891]
[1722333026493,0.00083,66710.0,66709.0,0.76952791]
[1722333026680,0.00083,66710.0,66709.0,1.21996995]
[1722333026889,0.00083,66710.0,66709.0,1.20596995]
[1722333027034,0.00083,66710.0,66709.0,1.02775795]
[1722333027401,0.00083,66710.0,66709.0,0.92016095]
[1722333028526,0.02434879,66710.0,66709.0,0.92016095]
[1722333030933,0.02434879,66710.0,66709.0,1.21996995]
[1722333031684,0.02434879,66710.0,66709.0,1.2222944]
[1722333032158,0.02434879,66710.0,66709.0,1.5959034]
[1722333032357,0.02434879,66710.0,66709.0,1.95948996]
[1722333032880,0.00083,66710.0,66709.0,1.95948996]
[1722333034061,0.00083,66710.0,66709.0,1.80879564]
[1722333034236,0.00083,66710.0,66709.0,1.74505869]
[1722333034570,0.00083,66710.0,66709.0,1.73505869]
[1722333034782,0.00083,66710.0,66709.0,1.6221034]
[1722333034996,0.00083,66710.0,66709.0,1.73512902]
[1722333035203,0.00083,66710.0,66709.0,1.3222944]
[1722333035560,0.00083,66710.0,66709.0,1.6221034]
[1722333035766,0.02434771,66710.0,66709.0,1.6221034]
[1722333035973,0.02434771,66710.0,66709.0,1.73495823]
[1722333036173,0.00083,66710.0,66709.0,1.73495823]
[1722333036588,0.00083,66710.0,66709.0,1.81825823]
[1722333036774,0.00083,66710.0,66709.0,1.96895255]
[1722333037197,0.00083,66710.0,66709.0,1.7054034]
[1722333037417,0.00083,66710.0,66709.0,1.81821401]
[1722333038467,0.00083,66710.0,66709.0,2.11802301]
[1722333038834,0.02434661,66710.0,66709.0,2.11802301]
[1722333039230,0.00083,66710.0,66709.0,2.11802301]
[1722333039461,0.00083,66710.0,66709.0,2.26871733]
[1722333039881,0.00083,66710.0,66709.0,2.11802301]
[1722333041818,0.00083,66710.0,66709.0,2.14102301]
[1722333042019,0.02434613,66710.0,66709.0,2.14102301]
[1722333042232,0.02434613,66710.0,66709.0,2.17104301]
[1722333042847,0.00083,66710.0,66709.0,2.17104301]
[1722333043186,0.00083,66710.0,66709.0,2.30773733]
[1722333043351,0.00083,66710.0,66709.0,2.32173733]
[1722333043684,0.00083,66710.0,66709.0,2.62055067]
[1722333044082,0.00083,66710.0,66709.0,2.50873572]
[1722333044433,0.00083,66710.0,66709.0,2.76132437]
[1722333045383,0.00083,66710.0,66709.0,2.74732437]
[1722333045942,0.02434482,66710.0,66709.0,2.76132437]
[1722333046362,0.00083,66710.0,66709.0,2.76132437]
[1722333047344,0.00083,66710.0,66709.0,2.64963849]
[1722333047633,0.00083,66714.0,66713.0,1.68887]
[1722333047760,2.0,66720.0,66719.0,0.75941]
[1722333047961,2.0,66720.0,66719.0,1.97731507]
[1722333048326,2.0,66720.0,66719.0,2.30837314]
[1722333048460,2.0,66720.0,66719.0,2.35069314]
[1722333049047,2.02351203,66720.0,66719.0,2.50559591]
[1722333049252,2.02351203,66720.0,66719.0,2.45216165]
[1722333049448,2.0,66720.0,66719.0,2.43816165]
[1722333049883,2.0,66720.0,66719.0,2.45216165]
[1722333050955,2.0,66720.0,66719.0,2.61026165]
[1722333051101,2.0,66720.0,66719.0,2.60987513]
[1722333052158,2.02351248,66720.0,66719.0,2.60987513]
[1722333052497,2.0,66720.0,66719.0,2.60987513]
[1722333053627,2.0,66720.0,66719.0,2.6220713]
[1722333054811,2.0,66720.0,66719.0,2.62210396]
[1722333055312,2.02351248,66720.0,66719.0,2.62210396]
[1722333056763,2.02451248,66720.0,66719.0,2.63610396]
[1722333057069,2.02451248,66720.0,66719.0,2.63589151]
[1722333058555,2.02451248,66720.0,66719.0,2.63606666]
[1722333061159,2.01037833,66720.0,66719.0,2.63606666]
[1722333061361,2.01037833,66720.0,66719.0,2.63603434]
[1722333061804,2.01037833,66720.0,66719.0,2.62373434]
[1722333063541,2.09097833,66720.0,66719.0,2.07977034]
[1722333064101,2.15307833,66720.0,66719.0,1.69253783]
[1722333064312,2.12956585,66720.0,66719.0,1.09007383]
[1722333064523,2.12956585,66720.0,66719.0,1.39998989]
[1722333064730,2.12956585,66720.0,66719.0,1.28831728]
[1722333064939,2.12956585,66720.0,66719.0,1.38990733]
[1722333065162,2.12956585,66720.0,66719.0,1.37590733]
[1722333065363,2.12956585,66720.0,66719.0,1.38590957]
[1722333065570,2.12956585,66720.0,66719.0,1.49990957]
[1722333065766,2.12856585,66720.0,66719.0,1.48590957]
[1722333066635,2.12856585,66720.0,66719.0,1.47590957]
[1722333066802,2.12956585,66720.0,66719.0,1.49790957]
[1722333067207,2.12956585,66720.0,66719.0,1.48810392]
[1722333067404,2.15308105,66720.0,66719.0,1.49810392]
[1722333068070,2.15308105,66720.0,66719.0,1.05831992]
[1722333068266,2.15308105,66720.0,66719.0,0.94653328]
[1722333068683,2.15308105,66720.0,66719.0,1.05804527]
[1722333068891,2.15308105,66720.0,66719.0,0.94744628]
[1722333069097,2.15391105,66720.0,66719.0,1.08897979]
[1722333069298,2.15391105,66720.0,66719.0,1.08897825]
[1722333069493,2.15391105,66720.0,66719.0,1.35870462]
[1722333070094,2.15391105,66720.0,66719.0,1.38872462]
[1722333070502,2.15391105,66720.0,66719.0,1.08896062]
[1722333071007,2.15391105,66720.0,66719.0,1.27723028]
[1722333071247,2.15391105,66720.0,66719.0,1.38856186]
[1722333071660,2.15391105,66720.0,66719.0,1.38853991]
[1722333072002,2.15391105,66720.0,66719.0,1.73862862]
[1722333073469,2.15391105,66720.0,66719.0,1.44991028]
[1722333073809,2.15391105,66720.0,66719.0,1.47993028]
[1722333073988,2.15391105,66720.0,66719.0,1.28723028]
[1722333074152,2.15391105,66720.0,66719.0,1.25621028]
[1722333074349,2.15391105,66720.0,66719.0,1.28623028]
[1722333075434,2.15391105,66720.0,66719.0,0.66450611]
[1722333075886,2.15391105,66720.0,66719.0,0.96427011]
[1722333076555,2.15291105,66720.0,66719.0,0.93827011]
[1722333076827,2.15291105,66720.0,66719.0,0.95227011]
[1722333076986,2.15291105,66720.0,66719.0,0.96427011]
[1722333076987,2.15391105,66720.0,66719.0,0.96427011]
[1722333078401,0.75391105,66720.0,66719.0,0.66450611]
[1722333078569,1.15391105,66720.0,66719.0,0.66450611]
[1722333080131,1.16391105,66720.0,66719.0,0.03520707]
[1722333080371,1.60003585,66720.0,66719.0,0.026913]
[1722333080574,2.19955585,66720.0,66719.0,0.026913]
[1722333080793,2.19955585,66720.0,66703.0,0.01291645]
[1722333080794,0.02,66708.0,66703.0,0.000913]
[1722333081012,0.1428,66706.0,66703.0,0.000913]
[1722333081219,0.1428,66708.0,66703.0,0.000913]
[1722333081632,0.1428,66707.0,66705.0,0.00886406]
[1722333081852,0.1388,66706.0,66703.0,0.000913]
[1722333082100,0.02,66711.0,66703.0,0.000913]
[1722333082298,0.1588,66708.0,66703.0,0.000913]